bitfinex/quotes_SOLUSD_20241205
["timestamp","ask_amount","ask_price","bid_price","bid_amount"]
[1733440718546,0.07554011,238.39,238.38,234.58224291]
[1733440718719,0.0914804,238.4,238.39,24.91792122]
[1733440718917,4.91724952,238.4,238.39,25.54675691]
[1733440719157,4.91724952,238.4,238.39,26.13675691]
[1733440719362,0.0914804,238.4,238.39,26.13675691]
[1733440719522,0.09025264,238.41,238.39,26.13675691]
[1733440720452,0.09025264,238.41,238.39,21.96675691]
[1733440720753,0.78598249,238.64,238.39,21.96675691]
[1733440721049,4.71324685,238.45,238.39,21.96675691]
[1733440721357,4.71324685,238.45,238.39,1.34432569]
[1733440722238,4.71324685,238.45,238.39,0.75432569]
[1733440724050,4.71324685,238.45,238.39,0.62883569]
[1733440724253,4.71324685,238.45,238.07,12.57]
[1733440724254,0.78611894,238.44,238.38,209.33970635]
[1733440724480,5.34388694,238.44,238.38,209.33970635]
[1733440724756,4.557768,238.43,238.38,209.33970635]
[1733440724961,20.0,238.4,238.38,209.33970635]
[1733440725255,24.557768,238.39,238.38,209.33970635]
[1733440727133,24.557768,238.39,238.29,209.33970635]
[1733440727329,20.0,238.35,238.29,209.33970635]
[1733440727529,5.41783303,238.34,238.29,209.33970635]
[1733440727833,20.0,238.31,238.29,209.33970635]
[1733440728224,4.63104856,238.33,238.29,209.33970635]
[1733440729034,0.7867691,238.32,238.29,209.33970635]
[1733440729247,22.6638,238.3,238.2,209.33970635]
[1733440729433,0.78709,238.29,238.2,209.33970635]
[1733440729652,23.776884,238.28,238.2,209.33970635]
[1733440729959,5.33905998,238.27,238.2,209.33970635]
[1733440730156,20.0,238.24,238.2,209.33970635]
[1733440730330,20.0,238.21,238.2,209.33970635]
[1733440730530,24.55189581,238.21,238.2,209.33970635]
[1733440730757,4.55189581,238.21,238.2,209.33970635]
[1733440731054,4.55189581,238.21,238.2,209.46519635]
[1733440731557,3.45069966,238.39,238.21,20.89383005]
[1733440731726,4.74993175,238.38,238.32,209.33970635]
[1733440731933,5.53655005,238.38,238.32,209.33970635]
[1733440732235,4.74993175,238.38,238.32,209.33970635]
[1733440732437,4.74993175,238.37,238.32,209.33970635]
[1733440732740,4.74993175,238.44,238.34,0.12549]
[1733440733061,4.74993175,238.47,238.42,209.33970635]
[1733440733224,0.0763638,238.43,238.42,209.33970635]
[1733440733427,4.62321357,238.43,238.42,209.33970635]
[1733440733943,4.54684977,238.43,238.42,209.33970635]
[1733440734134,4.54684977,238.43,238.42,209.46519635]
[1733440734525,4.54684977,238.43,238.42,209.33970635]
[1733440735037,4.54684977,238.56,238.42,209.33970635]
[1733440735258,0.78622068,238.55,238.42,209.33970635]
[1733440735458,5.33774607,238.55,238.42,209.33970635]
[1733440735770,4.55152539,238.54,238.42,213.50970635]
[1733440735973,0.78626374,238.53,238.42,213.50970635]
[1733440736266,5.33778913,238.53,238.42,213.50970635]
[1733440736438,4.55152539,238.52,238.42,213.50970635]
[1733440736635,0.78624273,238.51,238.42,213.50970635]
[1733440736964,4.55152539,238.51,238.42,213.50970635]
[1733440737141,4.67640467,238.51,238.42,213.50970635]
[1733440737654,5.46264731,238.56,238.42,213.50970635]
[1733440737853,4.67640467,238.55,238.42,213.50970635]
[1733440738160,20.0,238.52,238.42,213.50970635]
[1733440738360,4.67640467,238.51,238.42,213.50970635]
[1733440738662,20.0,238.51,238.42,213.50970635]
[1733440738967,4.67640467,238.5,238.42,213.50970635]
[1733440739275,20.0,238.49,238.42,213.50970635]
[1733440739441,4.56469795,238.48,238.42,213.50970635]
[1733440739638,4.56469795,238.47,238.42,213.50970635]
[1733440739958,4.56469795,238.49,238.42,213.50970635]
[1733440740157,4.56469795,238.48,238.42,209.33970635]
[1733440740357,5.35088438,238.47,238.42,209.33970635]
[1733440740555,20.0,238.44,238.42,209.33970635]
[1733440740769,4.56469795,238.43,238.42,209.33970635]
[1733440741864,4.56469795,238.43,238.21,6.1013]
[1733440741865,20.0,238.41,238.33,209.33970635]
[1733440742164,20.0,238.37,238.33,209.33970635]
[1733440742374,4.77978098,238.37,238.33,209.33970635]
[1733440742973,4.77978098,238.37,238.34,0.12549]
[1733440743270,2.6638,238.57,238.34,4.92465546]
[1733440743470,2.6638,238.57,238.44,209.33970635]
[1733440744248,4.58670314,238.56,238.44,209.33970635]
[1733440744458,4.58670314,238.55,238.44,209.33970635]
[1733440744646,5.37281492,238.54,238.44,209.33970635]
[1733440744840,4.58670314,238.53,238.44,209.33970635]
[1733440745366,4.53201568,238.52,238.44,209.33970635]
[1733440745560,4.53201568,238.51,238.44,209.33970635]
[1733440746255,0.78614123,238.53,238.44,209.33970635]
[1733440746456,20.0,238.53,238.44,209.33970635]
[1733440746771,25.31824358,238.52,238.44,209.33970635]
[1733440747074,20.0,238.49,238.44,209.33970635]
[1733440747266,4.6973547,238.49,238.44,209.33970635]
[1733440747775,0.78629528,238.48,238.35,209.33970635]
[1733440747981,23.776884,238.51,238.35,209.33970635]
[1733440748141,5.48382942,238.5,238.35,209.33970635]
[1733440748347,20.0,238.47,238.35,209.33970635]
[1733440748568,20.0,238.42,238.35,209.33970635]
[1733440748771,20.0,238.38,238.35,209.33970635]
[1733440748984,4.6973547,238.37,238.35,209.33970635]
[1733440749171,20.0,238.34,238.26,209.33970635]
[1733440749350,0.7868785,238.33,238.26,209.33970635]
[1733440749552,20.0,238.3,238.26,209.33970635]
[1733440749870,0.78698002,238.29,238.26,209.33970635]
[1733440750071,4.64743232,238.29,238.26,209.33970635]
[1733440750571,0.78689811,238.33,238.26,209.33970635]
[1733440750770,20.0,238.3,238.26,209.33970635]
[1733440750985,5.43438909,238.29,238.17,209.33970635]
[1733440751162,20.0,238.26,238.17,209.33970635]
[1733440751472,20.0,238.23,238.17,209.33970635]
[1733440751779,4.53048972,238.23,238.17,209.33970635]
[1733440751984,4.53048972,238.23,238.18,0.62968917]
[1733440752381,0.78686258,238.31,238.18,0.62968917]
[1733440752584,20.0,238.34,238.18,0.62968917]
[1733440752877,20.0,238.3,238.17,209.33970635]
[1733440753055,20.0,238.26,238.17,209.33970635]
[1733440753252,0.08199795,238.19,238.18,0.62963044]
[1733440753686,0.08199795,238.19,238.16,209.33970635]
[1733440754363,4.89097169,238.19,238.16,209.33970635]
[1733440754568,20.0,238.18,238.16,209.33970635]
[1733440754751,0.08199795,238.19,238.16,209.33970635]
[1733440755078,4.54954847,238.18,238.16,209.33970635]
[1733440756281,0.78730792,238.17,238.16,209.33970635]
[1733440756480,5.33685639,238.17,238.16,209.33970635]
[1733440757352,5.33685639,238.17,238.09,5.01524352]
[1733440757571,20.0,238.14,238.09,5.01524352]
[1733440757770,0.78748576,238.13,238.09,5.01524352]
[1733440757959,5.61245103,238.13,238.09,5.01524352]
[1733440758280,20.0,238.1,238.09,5.01524352]
[1733440760059,0.86947418,238.19,238.09,5.01524352]
[1733440760060,0.08199795,238.19,238.1,0.12549]
[1733440760368,4.73409334,238.19,238.16,209.33970635]
[1733440760566,0.78721199,238.18,238.16,209.33970635]
[1733440760771,5.43930738,238.18,238.16,209.33970635]
[1733440760966,4.65209539,238.18,238.16,209.33970635]
[1733440761365,0.08199795,238.19,238.16,209.33970635]
[1733440762088,1.86811481,238.19,238.17,30.56997724]
[1733440762389,0.08078138,238.21,238.17,30.56997724]
[1733440762691,0.78665231,238.46,238.17,30.56997724]
[1733440762692,0.78665231,238.46,238.23,20.89373955]
[1733440762861,2.5304,238.47,238.25,253.49702011]
[1733440763061,2.5304,238.47,238.25,257.66702011]
[1733440763263,2.5304,238.47,238.26,48.18887584]
[1733440763464,2.5304,238.47,238.26,48.94347196]
[1733440763659,0.78638022,238.46,238.26,4.92459612]
[1733440764361,0.78648802,238.53,238.31,24.71973745]
[1733440764558,4.74415373,238.52,238.46,4.17]
[1733440764789,0.78616207,238.6,238.48,0.12549]
[1733440764790,4.74415373,238.51,238.48,0.12549]
[1733440764984,4.74415373,238.5,238.49,0.62876166]
[1733440765184,4.63326897,238.5,238.49,0.62876166]
[1733440765370,2.5304,238.61,238.5,0.12549]
[1733440765684,2.5304,238.61,238.48,0.12549]
[1733440765685,0.78582951,238.6,238.47,0.62866361]
[1733440765892,5.41909848,238.6,238.48,0.12549]
[1733440766688,5.41909848,238.6,238.49,0.62876109]
[1733440766896,5.40851926,238.6,238.49,0.62876109]
[1733440767388,20.0,238.57,238.46,0.62875322]
[1733440767574,24.60991511,238.57,238.46,0.62875322]
[1733440767890,4.60991511,238.57,238.46,0.62875322]
[1733440768070,5.38533857,238.57,238.46,0.62875322]
[1733440768274,4.60991511,238.57,238.46,0.62875322]
[1733440768491,24.60991511,238.57,238.46,0.62875322]
[1733440768805,20.0,238.54,238.46,0.62875322]
[1733440769099,4.60991511,238.54,238.45,209.33970635]
[1733440769275,5.54129251,238.53,238.45,209.33970635]
[1733440769589,20.0,238.5,238.45,209.33970635]
[1733440769792,4.76578919,238.5,238.45,209.33970635]
[1733440769964,0.7755182,238.57,238.46,0.62887793]
[1733440770167,0.77546495,238.6,238.46,0.62887793]
[1733440770382,5.54125414,238.6,238.46,0.62887793]
[1733440770576,20.0,238.57,238.46,0.62885825]
[1733440770798,4.76578919,238.57,238.46,0.62885825]
[1733440771293,20.0,238.54,238.46,0.62885825]
[1733440771481,4.55490106,238.54,238.46,0.62885825]
[1733440771682,4.55490106,238.54,238.47,0.12549]
[1733440771986,4.55490106,238.57,238.48,0.62877135]
[1733440772779,4.55490106,238.57,238.49,0.12549]
[1733440773088,4.55490106,238.57,238.36,4.17]
[1733440773089,4.55490106,238.57,238.56,209.33970635]
[1733440773265,0.0876922,238.57,238.56,209.33970635]
[1733440773464,0.0876922,238.57,238.56,209.46519635]
[1733440774204,0.0876922,238.57,238.56,209.33970635]
[1733440774905,4.73797761,238.57,238.56,209.33970635]
[1733440775194,2.82814085,238.57,238.56,209.33970635]
[1733440779084,0.0876922,238.57,238.56,209.33970635]
[1733440781504,0.7751371,238.74,238.56,209.33970635]
[1733440781709,0.77501986,238.89,238.58,0.12549]
[1733440781890,8.725,238.83,238.68,209.33970635]
[1733440782202,0.77476716,238.82,238.68,209.33970635]
[1733440783209,20.0,238.8,238.68,209.33970635]
[1733440783388,0.77473438,238.79,238.68,209.33970635]
[1733440785280,0.77473758,238.82,238.68,209.33970635]
[1733440785589,0.77473758,238.82,238.69,4.17]
[1733440786012,0.77473758,238.82,238.68,208.98686077]
[1733440786184,23.776884,238.81,238.68,208.98686077]
[1733440786376,20.0,238.76,238.68,208.98686077]
[1733440786582,20.0,238.72,238.6,4.17]
[1733440786798,0.7750561,238.71,238.6,4.17]
[1733440787683,0.7750561,238.71,238.59,208.98686077]
[1733440787878,23.776884,238.7,238.59,208.98686077]
[1733440788107,20.0,238.67,238.54,209.11038345]
[1733440788306,0.77529374,238.66,238.54,209.11038345]
[1733440788698,3.28729374,238.66,238.54,213.28038345]
[1733440790109,20.0,238.62,238.54,209.11038345]
[1733440790289,0.77545508,238.61,238.54,209.11038345]
[1733440790493,0.77545508,238.61,238.5,31.343886]
[1733440790891,0.77545508,238.61,238.5,27.173886]
[1733440791079,0.77545508,238.61,238.51,4.17]
[1733440791511,0.77533544,238.61,238.51,4.17]
[1733440791683,0.77532862,238.65,238.51,4.17]
[1733440793303,0.07710608,238.52,238.51,4.17]
[1733440793501,0.07710608,238.52,238.5,27.173886]
[1733440795101,0.07710608,238.52,238.51,0.62886178]
[1733440795519,0.07710608,238.52,238.51,0.62877487]
[1733440795902,0.07710608,238.52,238.51,4.92426487]
[1733440797302,0.07710608,238.52,238.51,0.62877487]
[1733440798909,0.07710608,238.52,238.51,24.53114887]
[1733440799817,0.07710608,238.52,238.51,28.70114887]
[1733440800033,0.07710608,238.52,238.51,4.92426487]
[1733440800202,0.07710608,238.52,238.51,0.75426487]
[1733440800907,0.07710608,238.52,238.51,4.92426487]
[1733440801214,0.07710608,238.52,238.51,0.62877487]
[1733440801419,0.07710608,238.52,238.5,27.173886]
[1733440802003,0.08367307,238.55,238.51,4.92427689]
[1733440802242,0.09138472,238.56,238.52,0.12549]
[1733440802447,0.09138472,238.56,238.53,0.62855764]
[1733440803634,0.09138472,238.56,238.5,27.173886]
[1733440804205,0.09138472,238.56,238.51,0.6287543]
[1733440804621,0.09138472,238.56,238.51,4.17]
[1733440805629,0.09138472,238.56,238.5,27.173886]
[1733440805801,0.09138472,238.56,238.51,0.62880224]
[1733440807113,0.09138472,238.56,238.52,0.12549]
[1733440807332,0.09138472,238.56,238.53,0.62859612]
[1733440809336,0.09138472,238.56,238.55,0.12549]
[1733440809547,0.09138472,238.56,238.55,0.75388132]
[1733440809716,0.09138472,238.56,238.55,24.53076532]
[1733440810416,0.09138472,238.56,238.55,0.75388132]
[1733440811035,0.09138472,238.56,238.52,0.62853067]
[1733440811717,0.09138472,238.56,238.53,0.12549]
[1733440811917,0.09138472,238.56,238.54,0.6285924]
[1733440812216,0.09138472,238.56,238.55,0.12549]
[1733440812631,0.09138472,238.56,238.55,23.902374]
[1733440812836,7.18302995,238.81,238.55,24.53080628]
[1733440813041,0.77498061,238.71,238.55,24.53080628]
[1733440813239,0.09199283,238.56,238.55,0.62843228]
[1733440813442,0.09199283,238.56,238.5,27.173886]
[1733440813443,0.09199283,238.56,238.51,0.62857729]
[1733440813620,0.09199283,238.56,238.52,0.12549]
[1733440813819,0.09199283,238.56,238.54,0.12549]
[1733440814020,0.09199283,238.56,238.55,0.75396138]
[1733440814332,0.09199283,238.56,238.55,0.62847138]
[1733440814534,0.09199283,238.56,238.51,0.62864607]
[1733440815122,0.09199283,238.56,238.5,27.173886]
[1733440815530,0.86745292,238.56,238.5,27.173886]
[1733440816242,20.0,238.52,238.5,24.514286]
[1733440817717,6.4713,238.55,238.5,24.514286]
[1733440817924,0.09199283,238.56,238.51,0.62879167]
[1733440819346,0.09199283,238.56,238.5,24.514286]
[1733440819526,0.09199283,238.56,238.51,0.62878148]
[1733440819728,0.09199283,238.56,238.5,24.514286]
[1733440820244,0.09199283,238.56,238.51,0.62877363]
[1733440820828,0.09199283,238.56,238.55,209.03503059]
[1733440821451,0.09199283,238.56,238.55,209.16052059]
[1733440821635,0.09199283,238.56,238.55,209.03503059]
[1733440821844,0.09199283,238.56,238.55,232.93740459]
[1733440825158,0.09199283,238.56,238.55,209.03503059]
[1733440826267,6.49992713,238.56,238.5,24.514286]
[1733440826556,20.0,238.52,238.5,24.514286]
[1733440826763,20.0,238.53,238.5,24.514286]
[1733440827063,20.0,238.52,238.5,24.514286]
[1733440827235,0.77557391,238.51,238.5,24.514286]
[1733440827432,27.32261969,238.51,238.5,24.514286]
[1733440827737,20.77557391,238.51,238.5,24.514286]
[1733440827949,20.77557391,238.51,238.5,21.854286]
[1733440828457,27.31683752,238.51,238.5,19.194286]
[1733440828655,20.77557391,238.51,238.5,13.874286]
[1733440828835,27.31683752,238.51,238.5,13.874286]
[1733440829236,21.02655391,238.51,238.5,12.434586]
[1733440829438,20.90106391,238.51,238.5,5.767986]
[1733440829648,27.43821204,238.51,238.5,5.767986]
[1733440829833,27.31272204,238.51,238.5,5.767986]
[1733440830737,20.90106391,238.51,238.5,5.767986]
[1733440831059,20.0,238.47,238.27,209.03503059]
[1733440831250,0.77615714,238.46,238.27,209.03503059]
[1733440831453,20.12549,238.45,238.27,209.03503059]
[1733440831638,0.77619771,238.44,238.27,209.03503059]
[1733440831847,20.0,238.4,238.27,209.03503059]
[1733440832052,0.77620323,238.39,238.27,209.03503059]
[1733440832436,20.77603595,238.44,238.28,0.62929213]
[1733440832761,0.77596072,238.47,238.29,0.12549]
[1733440832935,0.77586509,238.46,238.28,0.62915544]
[1733440833138,0.12549,238.51,238.28,0.62915544]
[1733440833360,0.08605542,238.3,238.27,209.03503059]
[1733440834243,0.08605542,238.3,238.18,211.50683059]
[1733440834443,0.08605542,238.3,238.19,0.62956235]
[1733440836866,0.08605542,238.3,238.2,0.12549]
[1733440837048,0.08605542,238.3,238.21,0.62943964]
[1733440838238,0.08605542,238.3,238.22,0.12549]
[1733440838551,0.08605542,238.3,238.23,0.62937898]
[1733440840351,0.08605542,238.3,238.24,23.776884]
[1733440840541,0.08605542,238.3,238.25,0.62937837]
[1733440841240,0.08605542,238.3,238.28,209.03503059]
[1733440841571,0.08605542,238.3,238.29,24.53163944]
[1733440841866,0.08181473,238.33,238.32,0.12549]
[1733440842058,6.5658,238.61,238.32,0.12549]
[1733440842059,0.77567111,238.6,238.32,24.53137427]
[1733440842362,0.77567111,238.6,238.34,0.12549]
[1733440842564,0.77567111,238.6,238.37,209.16052059]
[1733440843368,2.39,238.67,238.4,20.44554648]
[1733440843661,0.77547671,238.7,238.56,209.03503059]
[1733440843868,0.77510205,238.74,238.56,209.03503059]
[1733440844170,0.77510205,238.74,238.57,209.07525289]
[1733440844474,0.77510205,238.74,238.58,0.6285452]
[1733440844649,0.77510205,238.74,238.59,23.902374]
[1733440844849,0.77510205,238.74,238.6,0.62841915]
[1733440845051,0.7749217,238.81,238.6,0.62841915]
[1733440846257,0.7749217,238.81,238.61,23.902374]
[1733440846462,20.0,238.8,238.62,0.62834953]
[1733440846661,0.77485769,238.79,238.62,0.62834953]
[1733440846876,0.77485769,238.79,238.58,0.62839932]
[1733440847170,0.77485769,238.79,238.59,23.776884]
[1733440847372,0.77490282,238.82,238.67,0.12549]
[1733440847580,0.4933036,238.84,238.67,24.53057158]
[1733440847941,0.4933036,238.84,238.76,0.12549]
[1733440848269,0.4933036,238.84,238.76,24.5304]
[1733440851171,0.4933036,238.84,238.76,24.40491]
[1733440853052,0.4933036,238.84,238.77,0.12549]
[1733440853242,0.08082742,238.78,238.77,0.12549]
[1733440853752,0.0913446,238.81,238.77,0.12549]
[1733440854092,0.0913446,238.81,238.78,0.6279361]
[1733440854361,0.0913446,238.81,238.79,23.776884]
[1733440854677,0.0913446,238.81,238.77,0.12549]
[1733440854678,0.0913446,238.81,238.8,0.62790699]
[1733440855480,0.0913446,238.81,238.78,23.776884]
[1733440855652,0.0913446,238.81,238.79,0.62793854]
[1733440858366,0.0913446,238.81,238.8,23.776884]
[1733440858872,0.0913446,238.81,238.6,2.4666]
[1733440859070,0.0913446,238.81,238.66,209.07525289]
[1733440859270,0.0913446,238.81,238.7,0.62827844]
[1733440859463,0.0913446,238.81,238.75,209.07525289]
[1733440859770,0.0913446,238.81,238.77,6.78229]
[1733440859980,0.0913446,238.81,238.79,0.12549]
[1733440860160,0.0913446,238.81,238.8,0.6277924]
[1733440860354,0.0913446,238.81,238.8,0.52165801]
[1733440860559,0.0913446,238.81,238.8,0.64714801]
[1733440860954,0.0913446,238.81,238.8,24.42403201]
[1733440861155,0.08019094,238.82,238.81,0.12549]
[1733440861361,0.09108091,238.86,238.81,0.12549]
[1733440861652,0.09108091,238.86,238.82,0.45922754]
[1733440862264,0.09108091,238.86,238.83,0.12549]
[1733440862579,1.671816,239.11,238.85,21.10938298]
[1733440862783,1.671816,239.11,238.98,209.07525289]
[1733440862950,6.1742,239.12,238.99,0.45821477]
[1733440863479,6.1742,239.22,238.99,0.45821477]
[1733440863675,0.78418107,239.21,238.99,24.23509877]
[1733440863882,0.78418107,239.21,239.07,209.07525289]
[1733440864290,7.845323,239.22,239.07,232.97762689]
[1733440864454,6.1742,239.29,239.07,232.97762689]
[1733440864652,0.78384223,239.28,239.07,232.97762689]
[1733440865686,7.844838,239.29,239.07,232.97762689]
[1733440866668,0.78377262,239.28,239.07,232.85213689]
[1733440867104,20.0,239.26,239.07,232.85213689]
[1733440867374,0.78397716,239.25,239.07,209.07525289]
[1733440869180,0.78397716,239.25,239.07,232.85213689]
[1733440869486,0.7838907,239.28,239.07,232.97762689]
[1733440870083,7.844838,239.29,239.07,232.53472442]
[1733440870296,6.1742,239.29,239.09,23.776884]
[1733440870585,6.1742,239.29,239.19,208.63235042]
[1733440870586,0.78365468,239.28,239.19,208.63235042]
[1733440871492,20.0,239.26,239.19,208.63235042]
[1733440871995,20.0,239.26,239.17,208.58483813]
[1733440873373,0.08444692,239.18,239.17,208.58483813]
[1733440874669,0.08444692,239.18,239.08,208.58483813]
[1733440876082,0.08444692,239.18,239.09,0.62723587]
[1733440876487,0.08444692,239.18,239.08,208.58483813]
[1733440876765,0.08444692,239.18,239.09,0.62724061]
[1733440877176,0.78405545,239.17,239.08,208.58483813]
[1733440877802,0.08444692,239.18,239.09,0.62727587]
[1733440878292,0.08444692,239.18,239.1,0.12549]
[1733440878497,0.08444692,239.18,239.17,208.58483813]
[1733440879167,0.08444692,239.18,239.17,232.48721213]
[1733440879373,0.08444692,239.18,239.17,208.58483813]
[1733440881407,0.07539426,239.19,239.18,23.902374]
[1733440881689,0.07539426,239.19,239.18,24.52914326]
[1733440881897,0.07539426,239.19,239.18,0.62676926]
[1733440885980,0.07539426,239.19,239.17,208.58483813]
[1733440886294,0.07539426,239.19,239.08,208.58483813]
[1733440886496,0.85934242,239.19,239.08,208.58483813]
[1733440887371,0.25098,239.17,238.99,208.58483813]
[1733440887578,0.12549,239.1,238.91,208.58483813]
[1733440887782,20.0,239.07,238.91,208.58483813]
[1733440887993,0.78465872,239.06,238.91,208.58483813]
[1733440888405,20.0,239.15,238.91,208.58483813]
[1733440888406,0.7844707,239.14,238.92,0.62757656]
[1733440889489,0.7844707,239.14,238.93,23.776884]
[1733440889683,0.7844707,239.14,238.95,23.776884]
[1733440890398,0.7844707,239.14,238.93,23.776884]
[1733440891085,0.08082745,239.2,239.1,23.776884]
[1733440891303,0.08082745,239.2,239.12,23.776884]
[1733440891476,0.08082745,239.2,239.14,23.776884]
[1733440891675,0.08082745,239.2,239.16,23.776884]
[1733440891897,0.08082745,239.2,239.18,23.776884]
[1733440892132,0.08082745,239.2,239.15,0.62700232]
[1733440892405,0.08082745,239.2,239.16,23.776884]
[1733440892606,0.08082745,239.2,239.18,23.776884]
[1733440892785,0.08082745,239.2,239.18,232.36172213]
[1733440893425,0.16473915,239.19,239.18,232.36172213]
[1733440893619,0.16473915,239.19,239.18,208.58483813]
[1733440894098,0.16473915,239.19,239.18,232.36172213]
[1733440894781,0.16473915,239.19,239.18,208.58483813]
[1733440895503,0.08934489,239.19,239.18,208.58483813]
[1733440895914,0.08934489,239.19,239.09,208.58483813]
[1733440896077,6.0763,239.17,239.05,208.67776346]
[1733440896280,20.0,239.14,238.91,6.2584]
[1733440896500,0.78435959,239.13,239.05,208.67776346]
[1733440897313,0.78435959,239.13,238.96,208.67776346]
[1733440898095,0.25098,239.12,238.95,208.7732673]
[1733440898300,0.25098,239.1,238.95,208.7732673]
[1733440898595,0.78457998,239.09,238.95,208.7732673]
[1733440899718,0.25098,239.08,238.95,208.7732673]
[1733440899921,0.78465092,239.07,238.95,208.7732673]
[1733440900411,0.12549,239.12,238.95,208.7732673]
[1733440900621,0.25098,239.1,238.96,4.168]
[1733440900815,0.78465974,239.09,238.96,4.168]
[1733440900997,0.7844365,239.13,238.96,4.7955492]
[1733440901418,0.12549,239.12,238.96,4.168]
[1733440901622,0.78455266,239.11,238.96,4.168]
[1733440902416,0.12549,239.15,238.98,4.168]
[1733440902728,0.7843776,239.14,238.99,27.944884]
[1733440903022,0.7843776,239.14,239.0,23.776884]
[1733440903393,0.09158178,239.2,239.05,23.776884]
[1733440903597,0.09158178,239.2,239.07,23.776884]
[1733440903902,0.16127781,239.29,239.09,23.776884]
[1733440905020,0.16127781,239.29,239.06,23.776884]
[1733440905517,0.12549,239.28,239.05,23.776884]
[1733440906124,0.25098,239.28,239.05,23.776884]
[1733440906824,0.25098,239.28,239.04,208.7732673]
[1733440907022,24.027864,239.26,239.04,208.7732673]
[1733440907198,0.25098,239.22,239.04,208.7732673]
[1733440909245,0.12549,239.22,239.04,208.7732673]
[1733440909608,3.1759,239.27,239.05,23.776884]
[1733440909926,20.0,239.25,239.04,208.7732673]
[1733440910339,0.12549,239.23,239.04,208.7732673]
[1733440911010,0.25098,239.24,239.04,208.7732673]
[1733440911411,0.12549,239.24,239.05,23.776884]
[1733440911625,0.12549,239.26,239.05,23.776884]
[1733440911828,0.25098,239.26,239.05,23.776884]
[1733440912027,0.12549,239.26,239.05,23.776884]
[1733440912214,3.1759,239.27,239.05,23.776884]
[1733440912733,0.12549,239.26,239.05,23.776884]
[1733440913112,0.25098,239.26,239.05,23.776884]
[1733440913438,0.08977345,239.06,239.05,23.776884]
[1733440913640,0.08977345,239.06,239.05,24.40416339]
[1733440915527,0.08977345,239.06,239.04,208.7732673]
[1733440915835,0.08977345,239.06,239.05,0.62732123]
[1733440916530,0.08977345,239.06,239.05,24.40420523]
[1733440917935,0.08977345,239.06,239.05,0.62732123]
[1733440918550,0.08977345,239.06,239.04,208.7732673]
[1733440919820,0.08977345,239.06,238.93,2.3437]
[1733440919821,0.08977345,239.06,238.95,208.7732673]
[1733440920028,0.08977345,239.06,238.93,211.12146177]
[1733440920549,0.08977345,239.06,238.94,0.62761326]
[1733440921246,0.08977345,239.06,238.93,208.77776177]
[1733440922424,0.08977345,239.06,238.94,0.62771245]
[1733440922627,0.08977345,239.06,239.02,208.77776177]
[1733440922839,0.08977345,239.06,239.03,0.62735055]
[1733440923154,0.08977345,239.06,239.03,2.97105055]
[1733440923334,0.08977345,239.06,239.04,23.776884]
[1733440923642,0.08977345,239.06,239.03,0.62717893]
[1733440923841,0.08977345,239.06,239.02,208.77776177]
[1733440924025,0.08977345,239.06,239.04,0.62741764]
[1733440925043,0.08977345,239.06,239.02,208.77776177]
[1733440925344,0.08977345,239.06,239.03,0.62740721]
[1733440926148,0.0851723,239.08,239.05,208.64270119]
[1733440926349,0.0851723,239.08,239.06,24.40400878]
[1733440927022,0.0851723,239.08,239.06,0.62712478]
[1733440928153,0.08494391,239.09,239.06,0.62712478]
[1733440928331,0.08494391,239.09,239.07,23.776884]
[1733440928655,0.08494391,239.09,239.08,24.40398138]
[1733440930162,0.08494391,239.09,239.08,0.62709738]
[1733440930461,0.08494391,239.09,239.06,0.62720488]
[1733440931156,0.08494391,239.09,239.05,208.64270119]
[1733440931329,0.08494391,239.09,239.06,0.62726328]
[1733440932543,0.08494391,239.09,239.07,23.776884]
[1733440932750,0.08494391,239.09,239.08,0.62714306]
[1733440932953,0.08494391,239.09,239.05,208.64270119]
[1733440933346,0.16680889,239.09,238.96,208.64270119]
[1733440933853,0.16680889,239.09,238.97,0.62754528]
[1733440934371,0.16680889,239.09,238.96,208.64270119]
[1733440934666,20.0,239.06,238.96,208.64270119]
[1733440934851,20.0,239.05,238.87,208.64270119]
[1733440935053,3.1759,239.01,238.87,208.64270119]
[1733440935979,0.25098,238.97,238.78,208.64270119]
[1733440936141,6.50391753,238.97,238.78,208.64270119]
[1733440936458,20.0,238.96,238.79,0.62787765]
[1733440936676,20.0,238.94,238.78,208.64270119]
[1733440936837,0.12549,238.96,238.78,208.64270119]
[1733440937045,20.0,238.91,238.78,208.64270119]
[1733440937258,20.0,238.87,238.78,208.64270119]
[1733440937456,20.0,238.84,238.69,208.64270119]
[1733440937646,20.0,238.87,238.7,0.62822915]
[1733440937851,20.0,238.9,238.7,0.62822915]
[1733440938044,6.50391753,238.97,238.78,208.64270119]
[1733440938271,6.50391753,238.98,238.79,0.62784709]
[1733440938475,6.50391753,239.0,238.79,0.62784709]